Department family,Entity,Date,Expense type,Expense area,Supplier,Transaction number,Amount
Department of Health,University Hospitals of Morecambe Bay NHS Foundation Trust,03-Oct-16,Rates,Estates & Facilities,BOROUGH OF BARROW-IN-FURNESS,1202514,56741
Department of Health,University Hospitals of Morecambe Bay NHS Foundation Trust,03-Oct-16,Rates,Estates & Facilities,LANCASTER CITY COUNCIL,1202510,46801
Department of Health,University Hospitals of Morecambe Bay NHS Foundation Trust,03-Oct-16,Rates,Estates & Facilities,SOUTH LAKELAND DISTRICT COUNCIL,1202515,36654
Department of Health,University Hospitals of Morecambe Bay NHS Foundation Trust,05-Oct-16,Managed Service Contract,Pathology,BECKMAN COULTER UK LTD,1195912,160935.4
Department of Health,University Hospitals of Morecambe Bay NHS Foundation Trust,05-Oct-16,Electrical Services,Capital Services,EDWARD DEWHURST LTD,1202951,42667.24
Department of Health,University Hospitals of Morecambe Bay NHS Foundation Trust,05-Oct-16,Agency Medical Staff - Management Costs,Trust Wide,HB RETINUE LTD,1201930,34410.53
Department of Health,University Hospitals of Morecambe Bay NHS Foundation Trust,05-Oct-16,Agency Midwives,Womens & Childrens,HB RETINUE LTD,1201935,39875.32
Department of Health,University Hospitals of Morecambe Bay NHS Foundation Trust,05-Oct-16,Agency ODPs,Theatres,HB RETINUE LTD,1201936,22111.07
Department of Health,University Hospitals of Morecambe Bay NHS Foundation Trust,05-Oct-16,Laboratory Testing,Pathology,LANCASHIRE TEACHING HOSPITALS NHS FOUNDATION TRUST,1201653,40335.89
Department of Health,University Hospitals of Morecambe Bay NHS Foundation Trust,05-Oct-16,NHS Product Sales,Trust Wide,NHS SUPPLY CHAIN,1202029,110020.36
Department of Health,University Hospitals of Morecambe Bay NHS Foundation Trust,05-Oct-16,Drugs,Pharmacy,NOVARTIS PHARMACEUTICALS UK LTD,1196139,27827.94
Department of Health,University Hospitals of Morecambe Bay NHS Foundation Trust,05-Oct-16,Drugs,Pharmacy,ROCHE PRODUCTS LTD,1195539,37667.68
Department of Health,University Hospitals of Morecambe Bay NHS Foundation Trust,05-Oct-16,Drugs,Pharmacy,ROCHE PRODUCTS LTD,1196269,27389.08
Department of Health,University Hospitals of Morecambe Bay NHS Foundation Trust,05-Oct-16,Recharge Specialist Registrars,Trust Wide,THE PENNINE ACUTE HOSPITALS NHS TRUST,1166977,32910.75
Department of Health,University Hospitals of Morecambe Bay NHS Foundation Trust,05-Oct-16,Building Services,Capital Services,WALTER CAREFOOT & SONS (CONS) LTD,1202953,74790.6
Department of Health,University Hospitals of Morecambe Bay NHS Foundation Trust,06-Oct-16,Agency Medical Staff,Anaesthetics,BROOKSON MEDICAL CARE SERVICES LTD,1201223,29916.8
Department of Health,University Hospitals of Morecambe Bay NHS Foundation Trust,12-Oct-16,Managed Service Contract,Corporate,CARVETI PARTNERSHIP LTD,1203677,35135.89
Department of Health,University Hospitals of Morecambe Bay NHS Foundation Trust,12-Oct-16,Managed Service Contract,Corporate,CARVETI PARTNERSHIP LTD,1203678,69551.98
Department of Health,University Hospitals of Morecambe Bay NHS Foundation Trust,12-Oct-16,Speech & Language Therapy Services,Core Clinical,CUMBRIA PARTNERSHIP NHS TRUST,1203680,30800.68
Department of Health,University Hospitals of Morecambe Bay NHS Foundation Trust,12-Oct-16,Agency Medical Staff - Management Costs,Trust Wide,HB RETINUE LTD,1203745,33265.92
Department of Health,University Hospitals of Morecambe Bay NHS Foundation Trust,12-Oct-16,Storage racking,Medical Records,MS STORAGE LTD,1199856,60619.2
Department of Health,University Hospitals of Morecambe Bay NHS Foundation Trust,12-Oct-16,Blood & Blood components contract,Core Clinical,NHS BLOOD & TRANSPLANT,1202545,35908.92
Department of Health,University Hospitals of Morecambe Bay NHS Foundation Trust,12-Oct-16,Blood & Blood components contract,Core Clinical,NHS BLOOD & TRANSPLANT,1202548,54352.67
Department of Health,University Hospitals of Morecambe Bay NHS Foundation Trust,12-Oct-16,Maintenance Contract,Clinical Investigations,NHS SUPPLY CHAIN,1203356,30456
Department of Health,University Hospitals of Morecambe Bay NHS Foundation Trust,12-Oct-16,NHS Product Sales,Trust Wide,NHS SUPPLY CHAIN,1204169,135029.67
Department of Health,University Hospitals of Morecambe Bay NHS Foundation Trust,12-Oct-16,NHS Product Sales,Trust Wide,NHS SUPPLY CHAIN,1205003,145544.79
Department of Health,University Hospitals of Morecambe Bay NHS Foundation Trust,12-Oct-16,Drugs,Pharmacy,ROCHE PRODUCTS LTD,1198881,27744.82
Department of Health,University Hospitals of Morecambe Bay NHS Foundation Trust,12-Oct-16,Recharge Specialist Registrars,Trust Wide,THE PENNINE ACUTE HOSPITALS NHS TRUST,1202538,67000
Department of Health,University Hospitals of Morecambe Bay NHS Foundation Trust,12-Oct-16,Recharge Specialist Registrars,Trust Wide,THE PENNINE ACUTE HOSPITALS NHS TRUST,1202541,83000
Department of Health,University Hospitals of Morecambe Bay NHS Foundation Trust,12-Oct-16,Recharge Specialist Registrars,Trust Wide,THE PENNINE ACUTE HOSPITALS NHS TRUST,1202542,307000
Department of Health,University Hospitals of Morecambe Bay NHS Foundation Trust,14-Oct-16,Agency Midwives,Womens & Childrens,HB RETINUE LTD,1203737,33564.92
Department of Health,University Hospitals of Morecambe Bay NHS Foundation Trust,19-Oct-16,Beds Managed Contract,Trust Wide,ARJO HUNTLEIGH LTD,1201686,44668.1
Department of Health,University Hospitals of Morecambe Bay NHS Foundation Trust,19-Oct-16,Laundry,Estates & Facilities,BERENDSEN UK LTD,1203648,29747.6
Department of Health,University Hospitals of Morecambe Bay NHS Foundation Trust,19-Oct-16,Laundry,Estates & Facilities,BERENDSEN UK LTD,1203661,45144.84
Department of Health,University Hospitals of Morecambe Bay NHS Foundation Trust,19-Oct-16,Laundry,Estates & Facilities,BERENDSEN UK LTD,1203669,24648.77
Department of Health,University Hospitals of Morecambe Bay NHS Foundation Trust,19-Oct-16,IT Hardware,Information Technology,CAPITA IT SERVICES,1204829,85176.29
Department of Health,University Hospitals of Morecambe Bay NHS Foundation Trust,19-Oct-16,Orthotics Service,Trust Wide,CRISPIN ORTHOTICS LTD,1202153,26750.61
Department of Health,University Hospitals of Morecambe Bay NHS Foundation Trust,19-Oct-16,Orthotics Service,Trust Wide,CRISPIN ORTHOTICS LTD,1202154,29226.45
Department of Health,University Hospitals of Morecambe Bay NHS Foundation Trust,19-Oct-16,Maintenance Contract,Theatres,GE HEALTHCARE,1202996,33821.88
Department of Health,University Hospitals of Morecambe Bay NHS Foundation Trust,19-Oct-16,Agency Medical Staff - Management Costs,Trust Wide,HB RETINUE LTD,1205724,33455.37
Department of Health,University Hospitals of Morecambe Bay NHS Foundation Trust,19-Oct-16,Agency Nurses,Trust Wide,HB RETINUE LTD,1205725,22308.43
Department of Health,University Hospitals of Morecambe Bay NHS Foundation Trust,19-Oct-16,Agency Midwives,Womens & Childrens,HB RETINUE LTD,1205730,39658.8
Department of Health,University Hospitals of Morecambe Bay NHS Foundation Trust,19-Oct-16,Laboratory Testing,Pathology,LANCASHIRE TEACHING HOSPITALS NHS FOUNDATION TRUST,1206373,46242.01
Department of Health,University Hospitals of Morecambe Bay NHS Foundation Trust,19-Oct-16,Maintenance Contract,Radiology,MOUNT INTERNATIONAL ULTRASOUND,1202722,29100
Department of Health,University Hospitals of Morecambe Bay NHS Foundation Trust,19-Oct-16,Payroll Services,Trust Wide,NHS SHARED BUSINESS SERVICE LTD,1204044,23692.87
Department of Health,University Hospitals of Morecambe Bay NHS Foundation Trust,19-Oct-16,NHS Product Sales,Trust Wide,NHS SUPPLY CHAIN,1206400,138417.4
Department of Health,University Hospitals of Morecambe Bay NHS Foundation Trust,19-Oct-16,Electricity,Estates & Facilities,NPOWER,1205233,75695.58
Department of Health,University Hospitals of Morecambe Bay NHS Foundation Trust,19-Oct-16,Electricity,Estates & Facilities,NPOWER,1205235,27587.54
Department of Health,University Hospitals of Morecambe Bay NHS Foundation Trust,19-Oct-16,Electricity,Estates & Facilities,NPOWER,1205236,61324.98
Department of Health,University Hospitals of Morecambe Bay NHS Foundation Trust,19-Oct-16,Drugs,Pharmacy,ROCHE PRODUCTS LTD,1200239,34454.69
Department of Health,University Hospitals of Morecambe Bay NHS Foundation Trust,19-Oct-16,Agency Medical Staff,Respiratory Medicine,SILVERWEED LTD,1206283,27567.5
Department of Health,University Hospitals of Morecambe Bay NHS Foundation Trust,19-Oct-16,Waiting List (Additional Capacity),Surgery,SPIRE HEALTHCARE LTD,1205904,114519.12
Department of Health,University Hospitals of Morecambe Bay NHS Foundation Trust,19-Oct-16,Laboratory Testing,Pathology,UNILABS LTD T/A IND HISTOPATH SVS,1203053,25600
Department of Health,University Hospitals of Morecambe Bay NHS Foundation Trust,19-Oct-16,Data Evaluation Services,Information Technology,UNIVERSITY HOSPITAL BIRMINGHAM NHS FOUND TRUST,1202118,35000
Department of Health,University Hospitals of Morecambe Bay NHS Foundation Trust,26-Oct-16,Beds Managed Contract,Trust Wide,ARJO HUNTLEIGH LTD,1208914,44668.1
Department of Health,University Hospitals of Morecambe Bay NHS Foundation Trust,26-Oct-16,Managed Service Contract,Pathology,BECKMAN COULTER UK LTD,1207459,160935.4
Department of Health,University Hospitals of Morecambe Bay NHS Foundation Trust,26-Oct-16,Waiting List (Additional Capacity),Surgery,BMI HEALTHCARE LTD,1207460,61680.24
Department of Health,University Hospitals of Morecambe Bay NHS Foundation Trust,26-Oct-16,Architecural Services,Capital Services,DAY ARCHITECTURAL LTD,1208954,21180
Department of Health,University Hospitals of Morecambe Bay NHS Foundation Trust,26-Oct-16,IT Upgrade,Information Technology,EVOLUTIONARY SYSTEMS COMPANY LTD,1208942,22500
Department of Health,University Hospitals of Morecambe Bay NHS Foundation Trust,26-Oct-16,IT Upgrade,Information Technology,EVOLUTIONARY SYSTEMS COMPANY LTD,1208943,22500
Department of Health,University Hospitals of Morecambe Bay NHS Foundation Trust,26-Oct-16,Agency Medical Staff - Management Costs,Trust Wide,HB RETINUE LTD,1192822,42035
Department of Health,University Hospitals of Morecambe Bay NHS Foundation Trust,26-Oct-16,Agency Medical Staff - Management Costs,Trust Wide,HB RETINUE LTD,1192827,27751
Department of Health,University Hospitals of Morecambe Bay NHS Foundation Trust,26-Oct-16,Agency Medical Staff - Management Costs,Trust Wide,HB RETINUE LTD,1192829,36723
Department of Health,University Hospitals of Morecambe Bay NHS Foundation Trust,26-Oct-16,Agency Medical Staff - Management Costs,Trust Wide,HB RETINUE LTD,1207450,40697.88
Department of Health,University Hospitals of Morecambe Bay NHS Foundation Trust,26-Oct-16,Agency Midwives,Womens & Childrens,HB RETINUE LTD,1207453,39632
Department of Health,University Hospitals of Morecambe Bay NHS Foundation Trust,26-Oct-16,Agency Nurses,Trust Wide,HB RETINUE LTD,1207455,33300.57
Department of Health,University Hospitals of Morecambe Bay NHS Foundation Trust,26-Oct-16,Drugs,Pharmacy,LLOYDS PHARMACY LIMITED,1208928,181133.75
Department of Health,University Hospitals of Morecambe Bay NHS Foundation Trust,26-Oct-16,Drugs,Pharmacy,LLOYDS PHARMACY LIMITED,1208934,456757.47
Department of Health,University Hospitals of Morecambe Bay NHS Foundation Trust,26-Oct-16,CNST Premium,Corporate,NHS LITIGATION AUTHORITY,1208938,870576
Department of Health,University Hospitals of Morecambe Bay NHS Foundation Trust,26-Oct-16,NHS Product Sales,Trust Wide,NHS SUPPLY CHAIN,1209003,132917.35
Department of Health,University Hospitals of Morecambe Bay NHS Foundation Trust,26-Oct-16,Medical equipment,Respiratory Medicine,OLYMPUS KEYMED,1208957,59807.48
Department of Health,University Hospitals of Morecambe Bay NHS Foundation Trust,26-Oct-16,Medical equipment,Respiratory Medicine,OLYMPUS KEYMED,1208958,92674.63
Department of Health,University Hospitals of Morecambe Bay NHS Foundation Trust,26-Oct-16,Building Services,Capital Services,PININGTON CONSTRUCTION,1208946,31957.94
Department of Health,University Hospitals of Morecambe Bay NHS Foundation Trust,26-Oct-16,Drugs,Pharmacy,ROCHE PRODUCTS LTD,1203755,40070.38
Department of Health,University Hospitals of Morecambe Bay NHS Foundation Trust,26-Oct-16,Drugs,Pharmacy,ROCHE PRODUCTS LTD,1203758,37547.3
Department of Health,University Hospitals of Morecambe Bay NHS Foundation Trust,26-Oct-16,Drugs,Pharmacy,ROCHE PRODUCTS LTD,1205258,33103.97
Department of Health,University Hospitals of Morecambe Bay NHS Foundation Trust,26-Oct-16,Building Services,Capital Services,WALTER CAREFOOT & SONS (CONS) LTD,1208944,50651.05
